Cogmind - Beta 13 @@@ ROGUE MODE // 2024.05.01 @ 17:25:04 Player: ThemBee Result: Destroyed by S-10 Pest with Light Assault Rifle Performance ------------- Evolutions (0) 0 Regions Visited (2) 400 Robots Destroyed (22) 110 Value Destroyed (588) 588 Prototype IDs (13) 260 Alien Tech Used (0) 0 Bonus (0) 0 TOTAL SCORE: 1358 Bonus ------- None Cogmind --------- Core Integrity 0/250 Matter 272/300 Energy 200/200 System Corruption 0% Temperature Cool (0) Movement Walking (130) Location -10/Subcaves Parts ------- > --- POWER (1) -------- Subdweller Power Source > --- PROPULSION (2) --- Cargo Legs > --- UTILITY (2+2) ---- Disposable Heat Sink Structural Scanner > --- WEAPON (2) ------- Subdweller Machine Gun Subdweller Machine Gun > --- INVENTORY (5) ---- Spiked Treads Riot Gun Subdweller Laser Barrage Gun Grenade Launcher Peak State ------------ > --- POWER ------------ Subdweller Power Source > --- PROPULSION ------- Cargo Legs > --- UTILITY ---------- Disposable Heat Sink Structural Scanner > --- WEAPON ----------- Subdweller Machine Gun Battle Cannon > --- INVENTORY -------- Spiked Treads Riot Gun Subdweller Laser Subdweller Machine Gun Grenade Launcher [Rating: 26] Favorites ----------- Power Ion Engine Engine Ion Engine Propulsion Light Treads Treads Light Treads Leg Cargo Legs Wheel Compact Wheel Utility Structural Scanner Device Structural Scanner Storage Small Storage Unit Protection Scrap Shield Weapon Subdweller Machine Gun Energy Gun Small Laser Energy Cannon Beam Cannon Ballistic Gun Subdweller Machine Gun Ballistic Cannon Battle Cannon Launcher Grenade Launcher Build | -11 -10 -10 ------- Run | Yrd Mat Sub Slots Evolved . | . . . Power . | . . . Propulsion . | . . . Utility . | . . . Weapon . | . . . Parts Attached 38 | 7 12 19 Power 6 | 1 2 3 Engine 6 | 1 2 3 Core . | . . . Reactor . | . . . Propulsion 8 | 2 2 4 Treads 2 | . 2 . Leg 1 | . . 1 Wheel 5 | 2 . 3 Hover . | . . . Flight . | . . . Utility 7 | 2 1 4 Device 5 | 1 1 3 Storage 1 | 1 . . Processor . | . . . Hackware . | . . . Protection 1 | . . 1 Artifact . | . . . Weapon 17 | 2 7 8 Energy Gun 5 | 2 2 1 Energy Cannon 1 | . . 1 Ballistic Gun 7 | . 2 5 Ballistic Cannon 2 | . 1 1 Launcher 2 | . 2 . Special Weapon . | . . . Impact Weapon . | . . . Slashing Weapon . | . . . Piercing Weapon . | . . . Special Melee Weapon . | . . . Unidentified Prototypes . | . . . Parts Lost 9 | . 4 5 Power . | . . . Propulsion 2 | . 1 1 Utility 1 | . . 1 Weapon 6 | . 3 3 Highest Loss Streak 3 | . 3 2 To Critical Strikes . | . . . Average Slot Usage (%) 85 | . 98 78 Engine 13 | . 14 12 Treads 8 | . 18 3 Leg 3 | . . 5 Wheel 10 | . 9 10 Device 17 | . 14 19 Storage 5 | . 14 . Protection 1 | . . 2 Energy Gun 4 | . 10 . Ballistic Gun 11 | . 7 14 Ballistic Cannon 7 | . 6 8 Naked Turns . | . . . Heaviest Build 30 | 13 17 30 Greatest Support 55 | 32 40 55 Greatest Overweight (x) 2 | . . 2 Average Overweight (x) . | . . . Largest Inventory Capacity 8 | 8 8 8 Average Capacity 6 | 7 8 5 Most Carried 8 | 7 8 8 Average Carried 5 | 4 7 5 Final Capacity 8 | 8 8 5 Final Carried 8 | 6 8 5 Class Distribution -------------------- 70% | Mutant 29% | Scavenger-Mutant Dominant Class ---------------- Mutant | -10/Materials Mutant | -10/Subcaves Resources | -11 -10 -10 ----------- Run | Yrd Mat Sub Matter Collected 824 | 269 120 435 Remotely . | . . . Salvage Created 592 | 25 348 219 Parts 42 | 5 24 13 Haulers Intercepted . | . . . Recyclers Shooed . | . . . Parts Field Recycled . | . . . Retrieved Matter . | . . . Parts Self-Destructed 4 | . . 4 Prevented . | . . . Kills | -11 -10 -10 ------- Run | Yrd Mat Sub Combat Hostiles Destroyed 19 | . 11 8 Guns 15 | . 11 4 Cannons 4 | . . 4 Classes Destroyed 7 | 1 4 2 Tunneler 1 | 1 . . Operator 1 | . 1 . Watcher 1 | . 1 . Swarmer 6 | . 5 1 Grunt 6 | . 6 . Sentry 1 | . . 1 Subdweller 6 | . . 6 Best Kill Streak 6 | 1 6 2 Combat Bots Only 6 | . 6 2 Max Kills in Single Turn 1 | 1 1 1 Gunslinging . | . . . Exploded . | . . . Melee . | . . . Uniques/NPCs Destroyed . | . . . Combat | -11 -10 -10 -------- Run | Yrd Mat Sub Hostile Shots Fired 156 | . 93 63 Missed 52 | . 30 22 Damage Taken 1692 | . 633 1059 Core 250 | . 135 115 Absorbed by Shields . | . . . Core Remaining (%) 100 | 100 . . Volleys Fired 139 | 3 55 81 Largest 2 | 2 2 2 Hottest 80 | 80 80 75 Shots Fired 198 | 6 83 109 Gun 170 | 6 77 87 Cannon 26 | . 4 22 Launcher 2 | . 2 . Special . | . . . Kinetic 134 | . 28 106 Thermal 53 | 6 44 3 Explosive 2 | . 2 . Electromagnetic 9 | . 9 . Robot Hit Streak 17 | 2 8 17 Robot Miss Streak 2 | 2 2 1 Penetration Max . | . . . Secondary Targets 1 | . 1 . Max Gunslinging Chain 1 | . 1 . Shots Hit Robots 105 | 4 56 45 Core Hits 32 | 1 17 14 Critical Kills . | . . . Critical Parts Destroyed . | . . . Critical Strikes 1 | . 1 . Corrupt 1 | . 1 . Melee Attacks . | . . . Impact . | . . . Slashing . | . . . Piercing . | . . . Sneak Attacks . | . . . Combat Hostiles . | . . . Follow-up Attacks . | . . . Damage Inflicted 1489 | 46 623 820 Guns 1150 | 46 589 515 Cannons 314 | . 16 298 Explosions 8 | . 8 . Melee . | . . . Ramming 17 | . 10 7 Kinetic 951 | . 171 780 Thermal 409 | 46 330 33 Explosive 8 | . 8 . Electromagnetic 104 | . 104 . Impact . | . . . Slashing . | . . . Piercing . | . . . Highest Corruption . | . . . Average Corruption . | . . . Corruption Purged . | . . . Corruption Blocked . | . . . Overload Shots . | . . . Overflow Damage . | . . . Projectiles . | . . . Explosions . | . . . Melee . | . . . Knockbacks 8 | . 1 7 Impact . | . . . Kinetic 7 | . 1 6 Secondary 1 | . . 1 Self-Inflicted Damage . | . . . Shots . | . . . Rammed . | . . . Targets Rammed 3 | . 2 1 Kicked 1 | . . 1 Crushed 2 | . 2 . Highest Temperature 260 | 56 260 . Average Temperature 83 | 25 88 . Received Heat Transfer 357 | . 252 105 Effects 1 | . 1 . Energy Bleed 1 | . 1 . Siege Activations . | . . . Robots Corrupted . | . . . Combat Hostiles . | . . . Parts Fried . | . . . Impact Corruptions . | . . . Robots Melted . | . . . Combat Hostiles . | . . . Parts Melted 1 | . 1 . Heat Transferred 925 | 100 750 75 Parts Sabotaged . | . . . Parts Stolen . | . . . Parts Stripped . | . . . Power Chain Reactions . | . . . Alert | -11 -10 -10 ------- Run | Yrd Mat Sub Peak Influence 356 | 5 356 . Initial 3 | . 3 . Average 142 | 1 153 . Maximum Alert Level 1 | . 1 . Low Security (%) 69 | 100 67 . Level 1 30 | . 32 . Level 2 . | . . . Level 3 . | . . . Level 4 . | . . . Level 5 . | . . . High Security . | . . . Max Security . | . . . Squads Dispatched 5 | . 5 . Investigation 1 | . 1 . Extermination . | . . . Reinforcement 4 | . 4 . Assault . | . . . Garrison . | . . . Intercept . | . . . Searches Triggered . | . . . Construction Impeded . | . . . Haulers Reinforced . | . . . Active Scanning Responses . | . . . Cargo Convoy Interrupts . | . . . Stealth | -11 -10 -10 --------- Run | Yrd Mat Sub Distress Signals 2 | . 2 . Communications Jammed . | . . . Distress Signals . | . . . Times Spotted 41 | . 29 12 Peak Tracking Total 5 | . 5 5 Tactical Retreats 5 | . 4 1 Traps | -11 -10 -10 ------- Run | Yrd Mat Sub Traps Triggered 6 | . 1 5 Indirectly . | . . . Trap Hack Attempts . | . . . Triggered . | . . . Disarmed . | . . . Reprogrammed . | . . . Reused . | . . . Traps Extracted . | . . . Installed . | . . . Triggered . | . . . Machines | -11 -10 -10 ---------- Run | Yrd Mat Sub Machines Disabled 1 | . . 1 Max in Single Turn 1 | . . 1 Machines Repaired . | . . . Machines Dismantled . | . . . Machines Sabotaged . | . . . Overloaded Fab Kills . | . . . Hacking | -11 -10 -10 --------- Run | Yrd Mat Sub Machines Accessed 7 | . 5 2 Terminals 3 | . 3 . Fabricators . | . . . Repair Stations . | . . . Recycling Units 2 | . 2 . Scanalyzers . | . . . Garrison Access . | . . . Total Hacks 18 | . 14 4 Successful 14 | . 10 4 Failed 4 | . 4 . Catastrophic . | . . . Database Lockouts . | . . . Manual 5 | . 5 . Terminals 7 | . 7 . Fabricators . | . . . Repair Stations . | . . . Recycling Units 7 | . 7 . Scanalyzers . | . . . Garrison Access . | . . . Terminal Hacks 9 | . 5 4 Record 3 | . . 3 Prototype ID Bank 2 | . 2 . Emergency Access Points 1 | . 1 . Hauler Manifests 1 | . 1 . Zone Layout 1 | . 1 . Derelict Proto ID Bank 1 | . . 1 Fabricator Hacks . | . . . Repair Station Hacks . | . . . Recycling Unit Hacks 3 | . 3 . Report Inventory 1 | . 1 . Retrieve Matter 1 | . 1 . Retrieve Components 1 | . 1 . Scanalyzer . | . . . Garrison Access Hacks . | . . . Unauthorized Hacks 2 | . 2 . Terminals 1 | . 1 . Botnet 1 | . 1 . Fabricators . | . . . Repair Stations . | . . . Recycling Units 1 | . 1 . Recyclers 1 | . 1 . Scanalyzers . | . . . Garrison Access . | . . . Data Cores Recovered . | . . . Used . | . . . Hacking Detections 2 | . 2 . Full Trace Events . | . . . Feedback Events . | . . . Feedback Blocked . | . . . Robot Schematics Acquired . | . . . Robots Built . | . . . Authchips . | . . . Time . | . . . Total Robot Build Rating . | . . . Part Schematics Acquired . | . . . Parts Built . | . . . Authchips . | . . . Time . | . . . Total Part Build Rating . | . . . Parts Repaired . | . . . Time . | . . . Parts Recycled . | . . . Recycled Matter . | . . . Retrieved Matter 127 | . 127 . Retrieved Components 9 | . 9 . Parts Scanalyzed . | . . . Part Schematics Acquired . | . . . Parts Damaged . | . . . Bothacking | -11 -10 -10 ------------ Run | Yrd Mat Sub Used RIF Installer . | . . . Robots Hacked . | . . . Non-combat . | . . . Combat . | . . . Robot Hacks Applied . | . . . Relay Couplers Released . | . . . Fabnet Peak Effective % . | . . . Robots Rewired . | . . . Allies Hacked . | . . . Hacks Repelled . | . . . Allies | -11 -10 -10 -------- Run | Yrd Mat Sub Total Allies . | . . . Largest Group . | . . . Highest-Rated Group . | . . . Highest-Rated Ally . | . . . Total Orders . | . . . Ally Attacks . | . . . Total Damage . | . . . Kills . | . . . Allies Corrupted . | . . . Allies Melted . | . . . Intel | -11 -10 -10 ------- Run | Yrd Mat Sub Robot Analysis Total . | . . . Derelict Logs Recovered . | . . . Drone Launches . | . . . Drone Recoveries . | . . . Exploration | -11 -10 -10 ------------- Run | Yrd Mat Sub Turns Passed 2622 | 77 913 1632 Spaces Moved 1615 | 52 394 1169 Core 1 | 1 . . Treads 275 | . 247 28 Legs 563 | . . 563 Wheels 776 | 51 147 578 Hover . | . . . Flight . | . . . Fastest Speed 50 | 50 100 95 Average Speed 120 | 99 137 115 Slowest Speed 160 | 100 160 160 Overloaded Moves . | . . . Propulsion Burnouts . | . . . Robots Hopped . | . . . Cave-ins Triggered . | . . . Exploration Rate (%) 45 | 4 62 71 Regions Visited 2 Branch Regions 1 Pre-discovered Areas 1 | . . 1 Known Exits Taken . | . . . Unknown Exits Taken 2 | 1 1 . Scrap Searched 3 | . . 3 Spaces Dug 3 | . . 3 Terrain Destroyed 18 | . 15 3 Melee . | . . . Projectile 3 | . . 3 AOE 15 | . 15 . Terrain Rammed . | . . . Walls Destroyed . | . . . Machines Disabled . | . . . Actions | -11 -10 -10 --------- Run | Yrd Mat Sub Total 2099 | 68 686 1345 Wait 252 | . 212 40 Move 1613 | 51 393 1169 Hop . | . . . Pick Up 23 | 7 6 10 Fast Attach 16 | 6 3 7 Attach 7 | 1 2 4 Detach 1 | . . 1 Swap 15 | . 7 8 Drop 28 | . 6 22 Fire 139 | 3 55 81 Melee . | . . . Ram . | . . . Kick 1 | . . 1 Crush 2 | . 2 . Escape Stasis . | . . . Rewire . | . . . Trap . | . . . Miscellaneous 2 | . . 2 Route ------- -11/Scrapyard -10/Materials (discovered 2 exits: [*Mat] / *Sub) -10/Subcaves (discovered 2 exits: [*Mat x2]) History --------- Turn | Location | Event 30 | -11/Scrapyard | Discovered new exit (range 16) 78 | -11/Scrapyard | Entered Materials 318 | -10/Materials | Build established: Mutant 423 | -10/Materials | Lost 3 parts (1n2w) 433 | -10/Materials | Core integrity fell below 50% 748 | -10/Materials | Discovered new exit (range 16) 966 | -10/Materials | Discovered new exit (range 8) 991 | -10/Materials | Entered Subcaves 1105 | -10/Subcaves | Shifting Twisted Machinery released Battle Cannon 1119 | -10/Subcaves | Shifting Twisted Machinery released Shrapnel Trap 1128 | -10/Subcaves | Shifting Twisted Machinery released Riot Gun 1157 | -10/Subcaves | A swath of the cavern ceiling suddenly collapsed 1354 | -10/Subcaves | Build established: Scavenger-Mutant 1421 | -10/Subcaves | Discovered new exit (range 8) 1556 | -10/Subcaves | A swath of the cavern ceiling suddenly collapsed 1825 | -10/Subcaves | Visited 4L-MR0's lab 1838 | -10/Subcaves | Found Cargo Legs 1840 | -10/Subcaves | Attached Cargo Legs, gained temporary slots: Utility x2 1945 | -10/Subcaves | Core integrity fell below 20% 2135 | -10/Subcaves | Build established: Mutant 2390 | -10/Subcaves | Learned location of Zion (-7) 2390 | -10/Subcaves | Met a Zionite searching for "candidates" 2411 | -10/Subcaves | Discovered new exit (range 5) 2421 | -10/Subcaves | Visited Clippyterm 2424 | -10/Subcaves | Learned Research machine intel 2557 | -10/Subcaves | Shifting Twisted Machinery released Sub. Machine Gun 2564 | -10/Subcaves | Shifting Twisted Machinery released Barrage Gun 2623 | -10/Subcaves | Destroyed by S-10 Pest with Light Assault Rifle Last Messages --------------- data I collect to feed it, half the time it still manages to suggest unhelpful sample queries and responses. --DD-NU8 >>Intel "Procgen" It looks like you're analyzing machine distribution algorithms, I have access to useful relevant data. Data stored: Research machine intel. >>Record! "Permadeath" It looks like you're defining "roguelike," quit while you're ahead. Please. Sub. Machine Gun falls loose from the Twisted Machinery. Barrage Gun falls loose from the Twisted Machinery. 02570_ Acquired Sub. Machine Gun. 02588_ Dropped Sub. Laser. 02589_ Acquired Barrage Gun. 02610_ S-10 Pest destroyed. 02623_ Flight Unit fries itself beyond repair. Map ----- +----------------------------------------------------+ | ?????????????????????????????????????????????????? | | ?????????????????????????????????????????????????? | | ?????????????????????????????????????????????????? | | ?????????????????????????????????????????????????# | | ??????####???????????????????????????????????????# | | ?????#####???????????????????????????????????????# | | ?????## ???????????????????????????????????????# | | ###### ?????????????????????????????????????????# | | ###### ??????????????????????????????????????#### | | ## ?????????????? ??????????????????####### | | ????????????" * ?????#####?????##### ## | | "" ????????????### %##??#########????### ## | | #"## # ????????????# ##?##### ###????## ## | | ""#"###?????????????? ##### "" ######## ## | | ##"#########?????????? #####""" ######## # | | ##""########??????????# #?##"""" #### # | | ##"#"##"# ##?????????### ######"""" # | | ####""##"###???? ####### ####### " "" # | | "" """ ####?????####### ###### """" [ # | | ### #"# ###???#### ####" """"""" | | ###""#"####??##### ###s ## """"""""" | | &&[### ####??### ## ###s ## " """""""" #### | | ]###" ####???## ## ### ## " """##""##### | | # ######### ## """"" ##""###?# | | "# #" ######## ## "" ###?? | | #### #### @ "" ##### | | ##### ## "" #### | | ##### ### "" | | ??### ### ### #### "" | | ??### ####### ##### ### # ## | | ?### ### ####### ### ## ##### | | ?## ### #### ## ######### ##### | | ?## ### #### ########## ##??# | | ?### ##### ###### ## ###?????### ###??# | | ?################################??????########??? | | ??#####?########??##############???????#######???? | | ?????????????????????????????????????????????????? | | ?????????????????????????????????????????????????? | | ?????????????????????????????????????????????????? | | ?????????????????????????????????????????????????? | | ?????????????????????????????????????????????????? | | ?????????????????????????????????????????????????? | | ?????????????????????????????????????????????????? | | ?????????????????????????????????????????????????? | | ?????????????????????????????????????????????????? | | ?????????????????????????????????????????????????? | | ?????????????????????????????????????????????????? | | ?????????????????????????????????????????????????? | | ?????????????????????????????????????????????????? | | | +----------------------------------------------------+ Best States ------------- Heat Dissipation 25 Coolant Potential 50 Energy Generation 15 Energy Capacity 250 Matter Stores 300 Matter Capacity 300 Sight Range 16 Terrain Scan Density 10 Armor Coverage 800 Evasion (%) 55 Recoil Reduction 2 Item Schematics ----------------- None Robot Schematics ------------------ None Fabricated ------------ Nothing Alien Tech Used ----------------- None Achievements -------------- None Challenges ------------ None Game ------ Seed CarbideGravityExpander Manual? 0 Play Time 00:33:03 Cumulative 61.0 hours Start 2024.05.01 @ 14:12:06 End 2024.05.01 @ 17:25:04 Sessions 3 Manual Loads 0 Difficulty Rogue Special Mode None Game No. 35 Rogue 35 Adventurer 0 Explorer 0 Win Type - Total 1 Types 1/0/0/0/0/0/0/0/0 Lore% 27 Gallery% 40 Achievement% 33 Wizard Run 0 Options --------- Layout 1 ASCII 0 Keyboard 0 Movement Numpad Keybinds 0 Fullscreen 1 Font 32/SmallcapsGlow Map View 50x40 Zoom Use 0% Tactical HUD 1 Map Filters NONE Filters NONE Steam 1 RUN: 39ed8574-5e88-4bb8-85a8-22a4cac4c94c